[Event "*** Titled Tuesday Blitz"]
[Site "Chess.com"]
[Date "2020.12.29"]
[Round "10"]
[White "Mikasinski"]
[Black "Pedrada88"]
[Result "1-0"]
[WhiteElo "2518"]
[BlackElo "2374"]
[TimeControl "180+1"]
[EndTime "11:55:00 PST"]
[Termination "Mikasinski won on time"]

1. e4 {[%clk 0:03:00.9]} 1... c5 {[%clk 0:03:00]} 2. Nf3 {[%clk 0:03:00.8]} 2...
Nc6 {[%clk 0:03:00.5]} 3. d4 {[%clk 0:03:01]} 3... cxd4 {[%clk 0:03:01.4]} 4.
Nxd4 {[%clk 0:03:01.8]} 4... Nf6 {[%clk 0:03:01.8]} 5. Nc3 {[%clk 0:03:02.3]}
5... e6 {[%clk 0:03:02.3]} 6. Ndb5 {[%clk 0:03:01.5]} 6... Bc5 {[%clk
0:03:02.9]} 7. Bf4 {[%clk 0:03:01.8]} 7... O-O {[%clk 0:03:02.5]} 8. Bd6 {[%clk
0:02:56.7]} 8... Qb6 {[%clk 0:03:01.8]} 9. Bxc5 {[%clk 0:02:54.4]} 9... Qxc5
{[%clk 0:03:02.7]} 10. Qd6 {[%clk 0:02:54.4]} 10... Qb6 {[%clk 0:03:03.2]} 11.
Qc7 {[%clk 0:02:53.4]} 11... Qc5 {[%clk 0:03:03.7]} 12. Qd6 {[%clk 0:02:54.1]}
12... Qg5 {[%clk 0:03:03.2]} 13. f4 {[%clk 0:02:51.5]} 13... Qh6 {[%clk
0:03:02.3]} 14. Be2 {[%clk 0:02:26]} 14... a6 {[%clk 0:02:59.2]} 15. Nc7 {[%clk
0:02:15.9]} 15... Ra7 {[%clk 0:02:59.5]} 16. e5 {[%clk 0:02:02.3]} 16... Nh5
{[%clk 0:01:04.9]} 17. g3 {[%clk 0:01:52.1]} 17... b5 {[%clk 0:01:03.9]} 18.
O-O-O {[%clk 0:01:33.9]} 18... Nxf4 {[%clk 0:01:01.8]} 19. gxf4 {[%clk
0:01:32.2]} 19... Qxf4+ {[%clk 0:01:02.7]} 20. Kb1 {[%clk 0:01:32.4]} 20... Qxe5
{[%clk 0:01:02.9]} 21. Qxe5 {[%clk 0:01:19.2]} 21... Nxe5 {[%clk 0:01:03.8]} 22.
N7xb5 {[%clk 0:01:13.6]} 22... axb5 {[%clk 0:01:03.4]} 23. Nxb5 {[%clk
0:01:10.9]} 23... Ra8 {[%clk 0:00:52.3]} 24. Nd6 {[%clk 0:01:03.6]} 24... Ba6
{[%clk 0:00:51.3]} 25. Rhe1 {[%clk 0:00:54.8]} 25... Bxe2 {[%clk 0:00:44.1]} 26.
Rxe2 {[%clk 0:00:55.7]} 26... Nc6 {[%clk 0:00:40.8]} 27. c3 {[%clk 0:00:47.9]}
27... f5 {[%clk 0:00:40.5]} 28. Nc4 {[%clk 0:00:43.6]} 28... Nb8 {[%clk
0:00:15.1]} 29. Ne5 {[%clk 0:00:37.9]} 29... Ra7 {[%clk 0:00:14.2]} 30. Red2
{[%clk 0:00:37.3]} 30... f4 {[%clk 0:00:11.7]} 31. h4 {[%clk 0:00:34.7]} 31...
g6 {[%clk 0:00:09.9]} 32. Rf2 {[%clk 0:00:30.3]} 32... d5 {[%clk 0:00:06.5]} 33.
Rd4 {[%clk 0:00:28.3]} 33... Rf5 {[%clk 0:00:06.4]} 34. Ng4 {[%clk 0:00:26.4]}
34... Kg7 {[%clk 0:00:04.8]} 35. Rdxf4 {[%clk 0:00:25.8]} 35... Raf7 {[%clk
0:00:04.3]} 36. Rxf5 {[%clk 0:00:24.3]} 36... Rxf5 {[%clk 0:00:04.2]} 37. Re2
{[%clk 0:00:21.8]} 1-0

[Event "*** Titled Tuesday Blitz"]
[Site "Chess.com"]
[Date "2020.12.29"]
[Round "10"]
[White "szabadaba"]
[Black "KarstenHansch"]
[Result "0-1"]
[WhiteElo "2574"]
[BlackElo "2468"]
[TimeControl "180+1"]
[EndTime "11:55:01 PST"]
[Termination "KarstenHansch won on time"]

1. e4 {[%clk 0:03:00.9]} 1... c5 {[%clk 0:02:57.5]} 2. Nc3 {[%clk 0:03:00.8]}
2... d6 {[%clk 0:02:56.8]} 3. g3 {[%clk 0:03:01.3]} 3... g6 {[%clk 0:02:56.9]}
4. Bg2 {[%clk 0:03:02]} 4... Bg7 {[%clk 0:02:57.8]} 5. d3 {[%clk 0:03:02.5]}
5... Nc6 {[%clk 0:02:58]} 6. f4 {[%clk 0:03:03.1]} 6... Rb8 {[%clk 0:02:58.3]}
7. Nf3 {[%clk 0:03:03.7]} 7... b5 {[%clk 0:02:57.3]} 8. O-O {[%clk 0:03:04]}
8... b4 {[%clk 0:02:55.2]} 9. Ne2 {[%clk 0:03:04.4]} 9... e6 {[%clk 0:02:54.6]}
10. Rb1 {[%clk 0:03:02.3]} 10... Nge7 {[%clk 0:02:54.8]} 11. Be3 {[%clk
0:03:02]} 11... O-O {[%clk 0:02:54.4]} 12. Qd2 {[%clk 0:03:01.8]} 12... Ba6
{[%clk 0:02:53.8]} 13. b3 {[%clk 0:02:59.8]} 13... d5 {[%clk 0:02:51.2]} 14. e5
{[%clk 0:02:49.7]} 14... c4 {[%clk 0:02:47.9]} 15. Ned4 {[%clk 0:02:46.2]} 15...
Qc7 {[%clk 0:02:31.7]} 16. Rfd1 {[%clk 0:02:45.3]} 16... Rfc8 {[%clk 0:02:30.5]}
17. Qf2 {[%clk 0:02:41.9]} 17... Nxd4 {[%clk 0:02:23.1]} 18. Nxd4 {[%clk
0:02:41.2]} 18... Qa5 {[%clk 0:02:21.5]} 19. g4 {[%clk 0:02:04.2]} 19... cxd3
{[%clk 0:02:19]} 20. cxd3 {[%clk 0:02:03.6]} 20... Rc3 {[%clk 0:02:19.2]} 21.
Bf1 {[%clk 0:02:03.6]} 21... Rbc8 {[%clk 0:02:15.1]} 22. Rb2 {[%clk 0:01:57.3]}
22... Nc6 {[%clk 0:02:09.1]} 23. Nf3 {[%clk 0:01:48.6]} 23... Qa3 {[%clk
0:01:38.6]} 24. Rbd2 {[%clk 0:01:39.9]} 24... Bb5 {[%clk 0:01:32.9]} 25. h4
{[%clk 0:01:35.3]} 25... a5 {[%clk 0:01:29]} 26. Nd4 {[%clk 0:01:15.9]} 26...
Nxd4 {[%clk 0:01:27.9]} 27. Bxd4 {[%clk 0:01:15.7]} 27... Rc1 {[%clk 0:01:28.5]}
28. f5 {[%clk 0:01:08.4]} 28... a4 {[%clk 0:01:14.7]} 29. bxa4 {[%clk
0:01:04.1]} 29... Bxa4 {[%clk 0:01:12.8]} 30. Rxc1 {[%clk 0:01:03.4]} 30... Qxc1
{[%clk 0:01:12.7]} 31. Kg2 {[%clk 0:00:31]} 31... gxf5 {[%clk 0:01:00.1]} 32.
gxf5 {[%clk 0:00:29.5]} 32... Bh6 {[%clk 0:00:58.9]} 33. Be3 {[%clk 0:00:14.2]}
33... Bxe3 {[%clk 0:00:43.6]} 34. Qxe3 {[%clk 0:00:14.6]} 34... Qxd2+ {[%clk
0:00:41.8]} 35. Qxd2 {[%clk 0:00:12.7]} 35... Rc2 {[%clk 0:00:42.7]} 36. Qxc2
{[%clk 0:00:08.9]} 36... Bxc2 {[%clk 0:00:43.6]} 37. fxe6 {[%clk 0:00:06]} 37...
fxe6 {[%clk 0:00:43.1]} 38. Kf3 {[%clk 0:00:06]} 38... Bb1 {[%clk 0:00:42.8]}
39. Ke3 {[%clk 0:00:06]} 39... Bxa2 {[%clk 0:00:43]} 40. Kd4 {[%clk 0:00:06.3]}
40... Bb1 {[%clk 0:00:41.2]} 41. Be2 {[%clk 0:00:05.6]} 41... Bc2 {[%clk
0:00:38.6]} 42. Bh5 {[%clk 0:00:02.3]} 42... Kf8 {[%clk 0:00:37.3]} 0-1

[Event "*** Titled Tuesday Blitz"]
[Site "Chess.com"]
[Date "2020.12.29"]
[Round "10"]
[White "tigra"]
[Black "FairChess_on_YouTube"]
[Result "0-1"]
[WhiteElo "2860"]
[BlackElo "3016"]
[TimeControl "180+1"]
[EndTime "11:55:06 PST"]
[Termination "FairChess_on_YouTube won by resignation"]

1. e4 {[%clk 0:03:00.9]} 1... c5 {[%clk 0:02:57.4]} 2. Nf3 {[%clk 0:03:00.7]}
2... e6 {[%clk 0:02:57.5]} 3. d4 {[%clk 0:03:01.4]} 3... cxd4 {[%clk 0:02:58.4]}
4. Nxd4 {[%clk 0:03:02.3]} 4... Nc6 {[%clk 0:02:59]} 5. Nc3 {[%clk 0:03:02.6]}
5... Qc7 {[%clk 0:02:59.4]} 6. Be3 {[%clk 0:03:01]} 6... a6 {[%clk 0:02:59.1]}
7. f4 {[%clk 0:03:01.3]} 7... d6 {[%clk 0:02:56]} 8. Be2 {[%clk 0:03:00.3]} 8...
Nf6 {[%clk 0:02:53.6]} 9. O-O {[%clk 0:03:00.1]} 9... Be7 {[%clk 0:02:53.3]} 10.
Kh1 {[%clk 0:02:57.8]} 10... O-O {[%clk 0:02:51.8]} 11. a4 {[%clk 0:02:57.6]}
11... Nxd4 {[%clk 0:02:45.7]} 12. Qxd4 {[%clk 0:02:53.6]} 12... e5 {[%clk
0:02:46.6]} 13. Qd2 {[%clk 0:02:49.2]} 13... exf4 {[%clk 0:02:46.6]} 14. Rxf4
{[%clk 0:02:48.1]} 14... Be6 {[%clk 0:02:47.1]} 15. Raf1 {[%clk 0:02:46.5]}
15... Nd7 {[%clk 0:02:45.4]} 16. Nd5 {[%clk 0:02:44.9]} 16... Bxd5 {[%clk
0:02:39.4]} 17. exd5 {[%clk 0:02:45.8]} 17... Bf6 {[%clk 0:02:33.9]} 18. c3
{[%clk 0:02:40.8]} 18... Rae8 {[%clk 0:02:25.4]} 19. Bd3 {[%clk 0:02:39]} 19...
Bg5 {[%clk 0:02:10.7]} 20. Rc4 {[%clk 0:02:37.5]} 20... Qxc4 {[%clk 0:02:00.9]}
21. Bxc4 {[%clk 0:02:38.4]} 21... Bxe3 {[%clk 0:01:51.5]} 22. Qc2 {[%clk
0:02:38.4]} 22... Ba7 {[%clk 0:01:45.5]} 23. Qf5 {[%clk 0:02:20.9]} 23... Re7
{[%clk 0:01:38.6]} 24. a5 {[%clk 0:02:14.4]} 24... g6 {[%clk 0:01:29.9]} 25. Qg5
{[%clk 0:02:13.1]} 25... Rfe8 {[%clk 0:01:26]} 26. g3 {[%clk 0:02:07.4]} 26...
Be3 {[%clk 0:01:18.9]} 27. Qh4 {[%clk 0:02:07.5]} 27... Ne5 {[%clk 0:01:12.9]}
28. Be2 {[%clk 0:02:07.4]} 28... Ba7 {[%clk 0:01:10.2]} 29. b4 {[%clk
0:01:54.2]} 29... Nd7 {[%clk 0:00:56.9]} 30. Bg4 {[%clk 0:01:47.3]} 30... Re1
{[%clk 0:00:42.3]} 31. Rxe1 {[%clk 0:01:43.2]} 31... Rxe1+ {[%clk 0:00:43.2]}
32. Kg2 {[%clk 0:01:43.3]} 32... Ne5 {[%clk 0:00:40.9]} 33. Qd8+ {[%clk
0:01:41]} 33... Kg7 {[%clk 0:00:40.7]} 34. Qa8 {[%clk 0:01:38.5]} 34... Be3
{[%clk 0:00:34.3]} 35. Bc8 {[%clk 0:01:27.8]} 35... Re2+ {[%clk 0:00:26]} 36.
Kh3 {[%clk 0:01:28.2]} 36... Nf3 {[%clk 0:00:19.3]} 37. g4 {[%clk 0:01:20.9]}
37... Bf4 {[%clk 0:00:17]} 38. g5 {[%clk 0:01:21.4]} 38... Ne5 {[%clk
0:00:16.6]} 39. Kh4 {[%clk 0:01:20.9]} 39... Rxh2+ {[%clk 0:00:12.1]} 40. Bh3
{[%clk 0:01:21]} 40... h5 {[%clk 0:00:08.4]} 41. gxh6+ {[%clk 0:01:18.9]} 41...
Kh7 {[%clk 0:00:08.2]} 42. Qc8 {[%clk 0:01:14.6]} 42... f5 {[%clk 0:00:06.8]}
0-1

[Event "*** Titled Tuesday Blitz"]
[Site "Chess.com"]
[Date "2020.12.29"]
[Round "10"]
[White "ChessQueen"]
[Black "chessmachine14"]
[Result "1-0"]
[WhiteElo "2707"]
[BlackElo "2269"]
[TimeControl "180+1"]
[EndTime "11:55:10 PST"]
[Termination "ChessQueen won on time"]

1. e4 {[%clk 0:03:00.9]} 1... c5 {[%clk 0:02:58.3]} 2. c3 {[%clk 0:03:01]} 2...
Nf6 {[%clk 0:02:57.3]} 3. e5 {[%clk 0:03:01]} 3... Nd5 {[%clk 0:02:57.4]} 4. Nf3
{[%clk 0:02:59.8]} 4... e6 {[%clk 0:02:56.5]} 5. d4 {[%clk 0:02:59.5]} 5... cxd4
{[%clk 0:02:56]} 6. cxd4 {[%clk 0:02:59.7]} 6... d6 {[%clk 0:02:56.3]} 7. Bc4
{[%clk 0:02:59.3]} 7... Be7 {[%clk 0:02:55.3]} 8. O-O {[%clk 0:02:59.4]} 8...
O-O {[%clk 0:02:55]} 9. Nc3 {[%clk 0:02:58.5]} 9... Nxc3 {[%clk 0:02:54.2]} 10.
bxc3 {[%clk 0:02:58.8]} 10... b6 {[%clk 0:02:47.1]} 11. Qd3 {[%clk 0:02:42.7]}
11... Bb7 {[%clk 0:02:43.3]} 12. exd6 {[%clk 0:02:38.7]} 12... Qxd6 {[%clk
0:02:21.8]} 13. Ng5 {[%clk 0:02:38.3]} 13... g6 {[%clk 0:02:19.7]} 14. Qh3
{[%clk 0:02:30.7]} 14... h5 {[%clk 0:02:07.9]} 15. a4 {[%clk 0:02:16.9]} 15...
Qd8 {[%clk 0:01:22.8]} 16. Qg3 {[%clk 0:02:00.2]} 16... Kg7 {[%clk 0:01:00.9]}
17. Bxe6 {[%clk 0:01:38.7]} 17... Bd6 {[%clk 0:00:26.4]} 18. Qh3 {[%clk
0:01:23.6]} 18... Qf6 {[%clk 0:00:18.6]} 19. Bb3 {[%clk 0:01:10.8]} 19... Bf4
{[%clk 0:00:18.1]} 20. Bxf4 {[%clk 0:01:07.1]} 20... Qxf4 {[%clk 0:00:18.3]} 21.
Qg3 {[%clk 0:01:04]} 21... Qxg3 {[%clk 0:00:17.7]} 22. hxg3 {[%clk 0:01:04.5]}
22... Nc6 {[%clk 0:00:16.9]} 23. Rfe1 {[%clk 0:01:02.4]} 23... Na5 {[%clk
0:00:17.1]} 24. Ba2 {[%clk 0:00:59.3]} 24... Rac8 {[%clk 0:00:10.6]} 25. Rac1
{[%clk 0:00:56.9]} 25... Kf6 {[%clk 0:00:10.5]} 26. Nh7+ {[%clk 0:00:56.2]}
26... Kg7 {[%clk 0:00:09.5]} 27. Nxf8 {[%clk 0:00:56.3]} 27... Kxf8 {[%clk
0:00:10.4]} 28. c4 {[%clk 0:00:55.3]} 28... Ba6 {[%clk 0:00:10.3]} 29. c5 {[%clk
0:00:55.1]} 29... bxc5 {[%clk 0:00:09.5]} 30. Rxc5 {[%clk 0:00:54.1]} 30... Rxc5
{[%clk 0:00:05.9]} 31. dxc5 {[%clk 0:00:55]} 31... Nc6 {[%clk 0:00:06.2]} 32.
Bd5 {[%clk 0:00:54.9]} 32... Bb7 {[%clk 0:00:06]} 33. Rb1 {[%clk 0:00:53.8]}
33... Ba8 {[%clk 0:00:04.6]} 34. Bxc6 {[%clk 0:00:51.5]} 34... Bxc6 {[%clk
0:00:04]} 35. a5 {[%clk 0:00:51.3]} 35... Ke7 {[%clk 0:00:03.6]} 36. Rd1 {[%clk
0:00:50.2]} 36... a6 {[%clk 0:00:02]} 37. Rd6 {[%clk 0:00:49.2]} 37... Bb5
{[%clk 0:00:02.1]} 38. f3 {[%clk 0:00:46.1]} 38... Bc4 {[%clk 0:00:02.4]} 39.
Kf2 {[%clk 0:00:45.8]} 39... g5 {[%clk 0:00:02.6]} 40. Ke3 {[%clk 0:00:42.2]}
40... f6 {[%clk 0:00:03]} 41. Rd2 {[%clk 0:00:39.4]} 41... Bb5 {[%clk
0:00:02.8]} 42. Ke4 {[%clk 0:00:37.2]} 42... Ke6 {[%clk 0:00:02.9]} 43. Rd6+
{[%clk 0:00:36.2]} 43... Ke7 {[%clk 0:00:03.2]} 44. Kf5 {[%clk 0:00:34]} 1-0

[Event "*** Titled Tuesday Blitz"]
[Site "Chess.com"]
[Date "2020.12.29"]
[Round "10"]
[White "JoAttack"]
[Black "queen_iryna"]
[Result "0-1"]
[WhiteElo "2172"]
[BlackElo "2304"]
[TimeControl "180+1"]
[EndTime "11:55:13 PST"]
[Termination "queen_iryna won on time"]

1. d4 {[%clk 0:03:00.9]} 1... d6 {[%clk 0:02:59.2]} 2. c4 {[%clk 0:02:58.9]}
2... e5 {[%clk 0:02:58.7]} 3. e3 {[%clk 0:02:55.3]} 3... Nc6 {[%clk 0:02:56.7]}
4. Nc3 {[%clk 0:02:53.3]} 4... g6 {[%clk 0:02:56.4]} 5. Nf3 {[%clk 0:02:52.1]}
5... Bg7 {[%clk 0:02:56.4]} 6. Be2 {[%clk 0:02:51.5]} 6... f5 {[%clk 0:02:54.6]}
7. d5 {[%clk 0:02:49.1]} 7... Nce7 {[%clk 0:02:52.5]} 8. O-O {[%clk 0:02:47.7]}
8... Nf6 {[%clk 0:02:52.5]} 9. b4 {[%clk 0:02:46.3]} 9... O-O {[%clk 0:02:52.1]}
10. Bb2 {[%clk 0:02:45.1]} 10... h6 {[%clk 0:02:46.2]} 11. Rc1 {[%clk
0:02:37.4]} 11... g5 {[%clk 0:02:46.1]} 12. Ne1 {[%clk 0:02:24.7]} 12... Bd7
{[%clk 0:02:38.8]} 13. f4 {[%clk 0:02:21.4]} 13... gxf4 {[%clk 0:02:27.8]} 14.
exf4 {[%clk 0:02:20.5]} 14... e4 {[%clk 0:02:28.7]} 15. Nc2 {[%clk 0:02:16.5]}
15... Qe8 {[%clk 0:02:20]} 16. Nd4 {[%clk 0:02:11.1]} 16... Qg6 {[%clk
0:02:19.5]} 17. Ne6 {[%clk 0:02:02.9]} 17... Bxe6 {[%clk 0:02:14.5]} 18. dxe6
{[%clk 0:02:02]} 18... Kh7 {[%clk 0:02:03]} 19. Rc2 {[%clk 0:01:53.1]} 19... Rg8
{[%clk 0:02:02.1]} 20. Kh1 {[%clk 0:01:45]} 20... Bh8 {[%clk 0:01:57.7]} 21. Rg1
{[%clk 0:01:42.3]} 21... Ng4 {[%clk 0:01:50.7]} 22. Bxg4 {[%clk 0:01:40]} 22...
fxg4 {[%clk 0:01:51.6]} 23. Nd5 {[%clk 0:01:34.9]} 23... Bxb2 {[%clk 0:01:39.8]}
24. Rxb2 {[%clk 0:01:33.5]} 24... Qxe6 {[%clk 0:01:25.6]} 25. Nxc7 {[%clk
0:01:31.7]} 25... Qf6 {[%clk 0:01:23.6]} 26. Re2 {[%clk 0:01:08.5]} 26... Rac8
{[%clk 0:01:11.2]} 27. Nd5 {[%clk 0:01:04.6]} 27... Nxd5 {[%clk 0:01:09.7]} 28.
Qxd5 {[%clk 0:01:03]} 28... g3 {[%clk 0:00:59.8]} 29. h3 {[%clk 0:01:00.3]}
29... Qxf4 {[%clk 0:00:53.5]} 30. Rxe4 {[%clk 0:00:59.1]} 30... Qg5 {[%clk
0:00:49.7]} 31. Qxd6 {[%clk 0:00:55.1]} 31... Rg7 {[%clk 0:00:45.5]} 32. c5
{[%clk 0:00:50.1]} 32... Rc6 {[%clk 0:00:43.5]} 33. Qd3 {[%clk 0:00:45]} 33...
Qf5 {[%clk 0:00:39.5]} 34. Qe3 {[%clk 0:00:41.9]} 34... Rf6 {[%clk 0:00:35.2]}
35. Re5 {[%clk 0:00:30.9]} 35... Qf2 {[%clk 0:00:34.2]} 36. Qe4+ {[%clk
0:00:28.1]} 36... Kh8 {[%clk 0:00:29.3]} 37. Re8+ {[%clk 0:00:27.1]} 37... Rg8
{[%clk 0:00:29.5]} 38. Re7 {[%clk 0:00:23.3]} 38... Rg7 {[%clk 0:00:27.1]} 39.
Qxb7 {[%clk 0:00:21.9]} 39... Rgf7 {[%clk 0:00:20.6]} 40. Re8+ {[%clk
0:00:19.3]} 40... Kg7 {[%clk 0:00:20.6]} 0-1

[Event "*** Titled Tuesday Blitz"]
[Site "Chess.com"]
[Date "2020.12.29"]
[Round "10"]
[White "pavel_skatchkov"]
[Black "TheBigBoss04"]
[Result "0-1"]
[WhiteElo "2575"]
[BlackElo "2752"]
[TimeControl "180+1"]
[EndTime "11:55:14 PST"]
[Termination "TheBigBoss04 won on time"]

1. d4 {[%clk 0:03:00.3]} 1... Nf6 {[%clk 0:02:58.1]} 2. Nf3 {[%clk 0:02:58.9]}
2... e6 {[%clk 0:02:56.1]} 3. g3 {[%clk 0:02:58]} 3... b5 {[%clk 0:02:56]} 4.
Bg2 {[%clk 0:02:53.1]} 4... Bb7 {[%clk 0:02:56.2]} 5. O-O {[%clk 0:02:52.1]}
5... d5 {[%clk 0:02:56.3]} 6. Nbd2 {[%clk 0:02:49.4]} 6... c5 {[%clk 0:02:54.5]}
7. a4 {[%clk 0:02:43]} 7... b4 {[%clk 0:02:47.4]} 8. c4 {[%clk 0:02:40.1]} 8...
bxc3 {[%clk 0:02:45.5]} 9. bxc3 {[%clk 0:02:41]} 9... Nbd7 {[%clk 0:02:41.9]}
10. c4 {[%clk 0:02:36.2]} 10... Be7 {[%clk 0:02:27]} 11. Rb1 {[%clk 0:02:33.4]}
11... Bc6 {[%clk 0:02:21.3]} 12. Ne5 {[%clk 0:02:19.3]} 12... Nxe5 {[%clk
0:02:20.5]} 13. dxe5 {[%clk 0:02:19.1]} 13... Nd7 {[%clk 0:02:16.1]} 14. cxd5
{[%clk 0:02:17.4]} 14... exd5 {[%clk 0:02:17]} 15. Nc4 {[%clk 0:02:15.6]} 15...
Nb6 {[%clk 0:02:04.5]} 16. Nd6+ {[%clk 0:01:59.7]} 16... Bxd6 {[%clk 0:01:59.9]}
17. exd6 {[%clk 0:02:00.6]} 17... Qxd6 {[%clk 0:01:46.6]} 18. a5 {[%clk
0:01:52.6]} 18... Nc4 {[%clk 0:01:41]} 19. Bf4 {[%clk 0:01:52.8]} 19... Qe6
{[%clk 0:01:30.1]} 20. Re1 {[%clk 0:01:12.4]} 20... O-O {[%clk 0:01:27.4]} 21.
a6 {[%clk 0:01:02.4]} 21... h6 {[%clk 0:01:21.4]} 22. Qd3 {[%clk 0:00:59.5]}
22... Rfe8 {[%clk 0:01:18.7]} 23. Rb7 {[%clk 0:00:45.9]} 23... Ne5 {[%clk
0:00:43.7]} 24. Qd2 {[%clk 0:00:29.3]} 24... Bxb7 {[%clk 0:00:24.2]} 25. axb7
{[%clk 0:00:27.2]} 25... Rad8 {[%clk 0:00:24.9]} 26. Rb1 {[%clk 0:00:22.5]}
26... Nc6 {[%clk 0:00:23.7]} 27. Bc7 {[%clk 0:00:16.5]} 27... Nb4 {[%clk
0:00:08.4]} 28. Bxd8 {[%clk 0:00:15]} 28... Rxd8 {[%clk 0:00:09.3]} 29. Qf4
{[%clk 0:00:11.5]} 29... Qb6 {[%clk 0:00:08.8]} 30. Bxd5 {[%clk 0:00:08]} 30...
Rf8 {[%clk 0:00:03.4]} 31. Bxf7+ {[%clk 0:00:03.9]} 31... Kh8 {[%clk 0:00:03]}
32. Rd1 {[%clk 0:00:03.4]} 32... Qxb7 {[%clk 0:00:02.8]} 33. Rd6 {[%clk
0:00:01.7]} 33... Qxf7 {[%clk 0:00:02.7]} 0-1

[Event "*** Titled Tuesday Blitz"]
[Site "Chess.com"]
[Date "2020.12.29"]
[Round "10"]
[White "PlotnikovPavel"]
[Black "tsaruk_maks"]
[Result "0-1"]
[WhiteElo "2451"]
[BlackElo "2583"]
[TimeControl "180+1"]
[EndTime "11:55:19 PST"]
[Termination "tsaruk_maks won by checkmate"]

1. e4 {[%clk 0:03:00.9]} 1... e6 {[%clk 0:03:00.4]} 2. d3 {[%clk 0:03:00.1]}
2... d5 {[%clk 0:03:01.3]} 3. Nd2 {[%clk 0:03:00.4]} 3... Nf6 {[%clk 0:03:00.5]}
4. Ngf3 {[%clk 0:03:00.4]} 4... c5 {[%clk 0:03:01.2]} 5. g3 {[%clk 0:03:00.3]}
5... Nc6 {[%clk 0:03:01.8]} 6. Bg2 {[%clk 0:03:00.8]} 6... Be7 {[%clk 0:03:02]}
7. O-O {[%clk 0:03:00.6]} 7... O-O {[%clk 0:03:02.6]} 8. Re1 {[%clk 0:03:00.7]}
8... h6 {[%clk 0:02:58.9]} 9. Qe2 {[%clk 0:03:00.6]} 9... Qc7 {[%clk 0:02:58.8]}
10. Nf1 {[%clk 0:02:56.6]} 10... b5 {[%clk 0:02:58.5]} 11. e5 {[%clk 0:02:54.9]}
11... Nd7 {[%clk 0:02:58.2]} 12. Bf4 {[%clk 0:02:54.9]} 12... a5 {[%clk
0:02:53.1]} 13. h4 {[%clk 0:02:54.9]} 13... Ba6 {[%clk 0:02:53.2]} 14. N1h2
{[%clk 0:02:54]} 14... Rfb8 {[%clk 0:02:53]} 15. Ng4 {[%clk 0:02:52.8]} 15...
Bf8 {[%clk 0:02:53.5]} 16. h5 {[%clk 0:02:52.8]} 16... b4 {[%clk 0:02:53]} 17.
Qe3 {[%clk 0:02:51.3]} 17... Kh7 {[%clk 0:02:50.4]} 18. Nh4 {[%clk 0:02:18.9]}
18... Ne7 {[%clk 0:02:24.2]} 19. Nf6+ {[%clk 0:01:49.7]} 19... Kh8 {[%clk
0:01:47]} 20. Nxd5 {[%clk 0:01:29.2]} 20... Nxd5 {[%clk 0:01:47.6]} 21. Bxd5
{[%clk 0:01:29.6]} 21... exd5 {[%clk 0:01:48.5]} 22. e6 {[%clk 0:01:30.3]} 22...
Bd6 {[%clk 0:01:49.4]} 23. Bxh6 {[%clk 0:01:27.9]} 23... Ne5 {[%clk 0:01:28.1]}
24. Bxg7+ {[%clk 0:00:42]} 24... Kxg7 {[%clk 0:01:27.8]} 25. Nf5+ {[%clk
0:00:35.2]} 25... Kf6 {[%clk 0:01:15.6]} 26. Qf4 {[%clk 0:00:16.5]} 26... Nxd3
{[%clk 0:00:32.9]} 27. Qh6+ {[%clk 0:00:05.3]} 27... Kxf5 {[%clk 0:00:33.4]} 28.
cxd3 {[%clk 0:00:04]} 28... Rh8 {[%clk 0:00:26.3]} 29. Qg7 {[%clk 0:00:01.9]}
29... Rag8 {[%clk 0:00:14.4]} 30. g4+ {[%clk 0:00:01.9]} 30... Kf4 {[%clk
0:00:14.5]} 31. Qf6+ {[%clk 0:00:02.4]} 31... Kxg4 {[%clk 0:00:15.1]} 32. f3+
{[%clk 0:00:02.7]} 32... Kh3+ {[%clk 0:00:05.7]} 33. Kh1 {[%clk 0:00:03.2]}
33... Rxh5 {[%clk 0:00:05]} 34. exf7 {[%clk 0:00:02.8]} 34... Be7 {[%clk
0:00:02.6]} 35. Qe6+ {[%clk 0:00:02.4]} 35... Kg3+ {[%clk 0:00:02.4]} 36. Kg1
{[%clk 0:00:01.7]} 36... Kxf3+ {[%clk 0:00:03.1]} 37. Kf1 {[%clk 0:00:01.4]}
37... Rh1# {[%clk 0:00:03.8]} 0-1